bitfinex/quotes_SOLUSD_20251119
["timestamp","ask_amount","ask_price","bid_price","bid_amount"]
[1763560406937,11.24403708,137.43,137.38,10.17403708]
[1763560407441,11.24403708,137.43,137.39,0.69]
[1763560407849,11.82403708,137.43,137.37,0.69]
[1763560408052,9.48403708,137.42,137.37,28.29499708]
[1763560408546,10.06403708,137.41,137.35,0.69]
[1763560408714,25.39586708,137.46,137.35,0.69]
[1763560408918,9.48403708,137.39,137.34,9.48403708]
[1763560409123,9.48403708,137.38,137.33,9.48403708]
[1763560409328,9.48403708,137.38,137.34,0.69]
[1763560409525,0.58,137.39,137.34,28.29499708]
[1763560409526,10.06403708,137.39,137.34,28.29499708]
[1763560409722,9.48403708,137.39,137.34,28.29499708]
[1763560409926,2.34,137.41,137.36,9.48403708]
[1763560410334,2.34,137.41,137.36,10.17403708]
[1763560411018,2.34,137.41,137.37,10.17403708]
[1763560411019,1.76,137.41,137.37,10.17403708]
[1763560411220,1.76,137.41,137.38,0.69]
[1763560412117,1.76,137.41,137.37,9.48403708]
[1763560412537,1.76,137.41,137.35,1.76]
[1763560412538,0.58,137.4,137.35,1.76]
[1763560412733,9.48403708,137.38,137.34,0.69]
[1763560413123,9.48403708,137.39,137.34,10.17403708]
[1763560413553,10.06403708,137.4,137.35,10.17403708]
[1763560413855,19.85286477,137.4,137.35,10.17403708]
[1763560414026,9.48403708,137.39,137.35,0.69]
[1763560415735,10.36882769,137.4,137.35,0.69]
[1763560415931,9.48403708,137.39,137.35,0.69]
[1763560416346,10.06403708,137.39,137.35,0.69]
[1763560416823,9.78882769,137.4,137.33,6.35906219]
[1763560416824,6.24906219,137.38,137.33,6.35906219]
[1763560417126,5.66906219,137.37,137.32,6.35906219]
[1763560417331,8.00906219,137.38,137.32,5.66906219]
[1763560417625,8.00906219,137.38,137.33,0.69]
[1763560417832,5.66906219,137.37,137.33,0.69]
[1763560418248,6.24906219,137.36,137.31,5.66906219]
[1763560418556,5.66906219,137.36,137.31,6.35906219]
[1763560418739,6.24906219,137.36,137.32,0.69]
[1763560419754,5.66906219,137.35,137.32,0.69]
[1763560420553,5.66906219,137.36,137.32,0.69]
[1763560421060,5.66906219,137.34,137.28,5.66906219]
[1763560421235,5.66906219,137.33,137.28,6.35906219]
[1763560421650,5.66906219,137.33,137.29,0.69]
[1763560421963,5.66906219,137.3,137.23,0.69]
[1763560422148,5.66906219,137.28,137.23,6.35906219]
[1763560422334,5.66906219,137.27,137.23,0.69]
[1763560423028,5.66906219,137.26,137.23,0.69]
[1763560423231,5.66906219,137.27,137.23,0.69]
[1763560423658,0.58,137.29,137.23,0.69]
[1763560423865,11.54882769,137.3,137.23,0.69]
[1763560424050,5.66906219,137.31,137.26,5.66906219]
[1763560424241,5.66906219,137.34,137.29,5.66906219]
[1763560424443,15.45788988,137.35,137.29,5.66906219]
[1763560424749,15.45788988,137.35,137.29,6.35906219]
[1763560425048,15.45788988,137.35,137.29,0.69]
[1763560425255,6.24906219,137.34,137.29,6.35906219]
[1763560426332,9.78882769,137.33,137.29,0.69]
[1763560426528,16.03788988,137.33,137.29,0.69]
[1763560426735,16.03788988,137.33,137.25,27.16680123]
[1763560426736,6.24906219,137.32,137.27,5.66906219]
[1763560426940,5.66906219,137.31,137.26,6.35906219]
[1763560427166,6.24906219,137.31,137.26,6.35906219]
[1763560427466,1.76,137.32,137.24,25.40727527]
[1763560427467,7.42906219,137.32,137.27,6.35906219]
[1763560427938,7.42906219,137.32,137.28,0.69]
[1763560428630,8.00906219,137.32,137.28,0.69]
[1763560428830,8.00906219,137.32,137.25,6.35906219]
[1763560428831,5.66906219,137.3,137.25,6.35906219]
[1763560429253,5.66906219,137.3,137.26,0.69]
[1763560429440,0.58,137.31,137.26,6.35906219]
[1763560429441,6.24906219,137.31,137.26,6.35906219]
[1763560429762,6.24906219,137.31,137.26,6.37906219]
[1763560429763,16.03788988,137.31,137.26,6.37906219]
[1763560429959,16.03788988,137.31,137.23,1.76]
[1763560429960,6.24906219,137.3,137.25,5.66906219]
[1763560430160,5.66906219,137.28,137.23,5.66906219]
[1763560430335,7.42906219,137.28,137.23,5.66906219]
[1763560430539,8.00906219,137.28,137.23,6.37906219]
[1763560430751,8.00906219,137.28,137.23,5.66906219]
[1763560430969,2.34,137.28,137.23,6.37906219]
[1763560431268,8.00906219,137.28,137.23,6.37906219]
[1763560431468,8.00906219,137.28,137.24,0.71]
[1763560431845,0.58,137.27,137.22,5.76906219]
[1763560432150,0.58,137.27,137.23,0.71]
[1763560432551,0.58,137.27,137.23,6.37906219]
[1763560432750,5.66906219,137.27,137.22,5.76906219]
[1763560432948,5.66906219,137.27,137.23,0.71]
[1763560433142,0.58,137.27,137.23,6.37906219]
[1763560433340,6.24906219,137.27,137.23,0.71]
[1763560433542,1.76,137.28,137.23,0.71]
[1763560433767,9.78882769,137.27,137.23,6.37906219]
[1763560434366,7.42906219,137.28,137.24,0.71]
[1763560434573,8.00906219,137.28,137.24,0.71]
[1763560434740,6.24906219,137.28,137.24,0.71]
[1763560434939,8.00906219,137.28,137.24,0.71]
[1763560435137,1.76,137.28,137.25,5.66906219]
[1763560436142,9.78882769,137.32,137.3,5.66906219]
[1763560436340,1.76,137.33,137.3,6.37906219]
[1763560436570,1.76,137.33,137.3,0.71]
[1763560436746,1.76,137.33,137.3,6.37906219]
[1763560437340,9.78882769,137.34,137.31,0.71]
[1763560437561,9.78882769,137.35,137.31,6.37906219]
[1763560437769,12.12882769,137.36,137.32,5.66906219]
[1763560437770,1.76,137.36,137.32,5.66906219]
[1763560437977,1.76,137.36,137.32,6.37906219]
[1763560438178,1.76,137.36,137.33,0.71]
[1763560438467,1.76,137.36,137.26,6.37906219]
[1763560438468,9.78882769,137.33,137.26,6.37906219]
[1763560438645,5.66906219,137.3,137.26,0.71]
[1763560438966,5.66906219,137.31,137.26,6.37906219]
[1763560439163,19.88096,137.32,137.28,5.66906219]
[1763560439354,1.76,137.32,137.29,5.66906219]
[1763560439667,1.76,137.32,137.3,0.71]
[1763560439968,2.34,137.35,137.3,0.71]
[1763560440166,8.00906219,137.35,137.3,0.71]
[1763560440368,5.66906219,137.34,137.3,0.71]
[1763560440678,5.66906219,137.32,137.28,0.71]
[1763560440884,15.45788988,137.33,137.28,0.71]
[1763560441376,5.66906219,137.32,137.26,5.66906219]
[1763560441546,5.66906219,137.32,137.26,0.71]
[1763560441547,5.66906219,137.31,137.26,0.71]
[1763560441947,2.34,137.31,137.26,0.71]
[1763560442142,5.66906219,137.3,137.26,0.71]
[1763560445270,7.42906219,137.31,137.26,0.71]
[1763560445874,8.00906219,137.31,137.26,0.71]
[1763560446549,5.66906219,137.3,137.26,0.71]
[1763560446749,7.42906219,137.31,137.26,0.71]
[1763560447048,5.66906219,137.35,137.29,5.66906219]
[1763560447254,1.76,137.34,137.29,5.66906219]
[1763560447456,1.76,137.34,137.29,0.71]
[1763560447658,5.66906219,137.33,137.3,0.71]
[1763560448477,1.76,137.34,137.26,5.66906219]
[1763560448478,5.66906219,137.32,137.26,5.66906219]
[1763560448655,15.45788988,137.33,137.3,0.71]
[1763560449758,15.45788988,137.33,137.29,0.71]
[1763560450384,5.66906219,137.32,137.29,0.71]
[1763560452756,9.78882769,137.33,137.25,7.28595553]
[1763560452757,5.66906219,137.3,137.25,0.71]
[1763560452973,0.58,137.31,137.23,0.71]
[1763560452974,5.66906219,137.28,137.23,0.71]
[1763560453280,2.34,137.31,137.23,6.37906219]
[1763560453460,2.34,137.31,137.24,5.66906219]
[1763560453655,5.66906219,137.29,137.24,0.71]
[1763560453851,5.66906219,137.29,137.25,0.71]
[1763560454773,1.76,137.31,137.25,0.71]
[1763560455081,1.76,137.33,137.28,5.66906219]
[1763560455273,1.76,137.33,137.29,0.71]
[1763560455679,9.78882769,137.35,137.29,6.37906219]
[1763560455887,17.21788988,137.35,137.29,5.66906219]
[1763560456196,17.21788988,137.35,137.3,0.71]
[1763560457192,1.76,137.35,137.3,6.37906219]
[1763560457395,1.76,137.35,137.31,0.71]
[1763560457696,1.76,137.35,137.31,6.37906219]
[1763560457884,1.76,137.35,137.32,5.66906219]
[1763560458090,1.76,137.35,137.33,0.71]
[1763560458483,5.66906219,137.37,137.33,0.71]
[1763560458684,7.42906219,137.37,137.33,0.71]
[1763560458883,5.66906219,137.37,137.33,0.71]
[1763560459086,7.42906219,137.37,137.33,0.71]
[1763560459284,6.24906219,137.36,137.3,0.71]
[1763560459480,5.66906219,137.36,137.31,0.71]
[1763560460402,5.66906219,137.35,137.31,0.71]
[1763560460599,1.76,137.37,137.31,0.71]
[1763560460600,5.66906219,137.36,137.31,0.71]
[1763560460775,15.45788988,137.36,137.31,0.71]
[1763560461282,9.78882769,137.36,137.31,0.71]
[1763560461480,15.45788988,137.36,137.31,0.71]
[1763560461670,7.42906219,137.37,137.31,6.37906219]
[1763560462076,7.42906219,137.37,137.32,6.38906219]
[1763560462478,8.00906219,137.37,137.33,0.72]
[1763560462684,7.42906219,137.37,137.33,0.72]
[1763560462981,5.66906219,137.36,137.31,6.38906219]
[1763560463182,5.66906219,137.36,137.32,0.72]
[1763560463485,2.34,137.37,137.29,6.38906219]
[1763560463486,5.66906219,137.34,137.29,6.38906219]
[1763560463692,5.66906219,137.33,137.28,5.66906219]
[1763560463892,5.66906219,137.29,137.24,6.77555637]
[1763560464089,5.66906219,137.26,137.22,0.82]
[1763560464300,5.66906219,137.25,137.22,0.1]
[1763560464602,5.66906219,137.24,137.22,0.1]
[1763560464784,5.66906219,137.23,137.22,0.1]
[1763560465108,1.76,137.23,137.22,0.1]
[1763560465308,8.00906219,137.23,137.22,0.1]
[1763560465599,25.08492624,137.23,137.22,0.1]
[1763560465980,25.08492624,137.23,137.16,0.1]
[1763560465981,9.78882769,137.19,137.16,0.1]
[1763560466179,15.45788988,137.17,137.16,0.1]
[1763560467094,16.03788988,137.17,137.16,0.1]
[1763560467599,34.15884988,137.17,137.16,0.1]
[1763560467815,41.44907368,137.17,137.16,0.1]
[1763560467978,5.66906219,137.11,137.09,0.1]
[1763560468178,17.21788988,137.1,137.09,0.1]
[1763560468395,9.78882769,137.13,137.09,0.1]
[1763560468597,1.76,137.12,137.1,5.66906219]
[1763560469082,1.76,137.12,137.1,6.32906219]
[1763560469592,1.76,137.12,137.1,0.66]
[1763560469796,1.76,137.12,137.09,0.1]
[1763560469993,1.76,137.12,137.09,6.42906219]
[1763560470188,1.76,137.12,137.09,0.76]
[1763560470381,1.76,137.12,137.1,0.66]
[1763560470812,1.76,137.12,137.11,5.66906219]
[1763560470989,1.76,137.12,137.1,6.32906219]
[1763560471191,1.76,137.12,137.09,0.1]
[1763560471582,5.66906219,137.1,137.09,0.1]
[1763560471817,0.58,137.11,137.09,0.1]
[1763560472008,5.66906219,137.1,137.09,0.1]
[1763560472212,6.24906219,137.11,137.09,0.1]
[1763560472399,5.66906219,137.12,137.09,0.1]
[1763560472599,1.76,137.13,137.1,0.66]
[1763560472810,5.66906219,137.15,137.1,6.32906219]
[1763560473110,5.66906219,137.18,137.13,5.66906219]
[1763560473323,1.76,137.16,137.14,5.66906219]
[1763560473911,5.66906219,137.21,137.15,6.32906219]
[1763560474212,1.76,137.2,137.16,5.66906219]
[1763560474437,1.76,137.2,137.17,5.66906219]
[1763560474709,1.76,137.2,137.17,6.32906219]
[1763560475022,1.76,137.2,137.17,5.66906219]
[1763560475589,1.76,137.2,137.18,6.32906219]
[1763560475814,1.76,137.22,137.19,5.66906219]
[1763560476116,1.76,137.22,137.21,5.66906219]
[1763560476319,5.66906219,137.24,137.2,0.66]
[1763560476801,0.58,137.24,137.19,5.66906219]
[1763560476996,0.58,137.24,137.19,6.32906219]
[1763560477203,5.66906219,137.22,137.17,5.66906219]
[1763560477512,10.36882769,137.24,137.16,0.66]
[1763560477513,9.78882769,137.23,137.16,0.66]
[1763560477705,5.66906219,137.23,137.16,0.66]
[1763560477897,5.66906219,137.23,137.18,5.66906219]
[1763560478414,5.66906219,137.22,137.17,5.66906219]
[1763560478812,1.76,137.21,137.17,0.66]
[1763560479025,1.76,137.21,137.15,10.15911173]
[1763560479026,9.49911173,137.2,137.15,10.15911173]
[1763560479388,9.49911173,137.19,137.15,0.66]
[1763560479621,9.49911173,137.18,137.13,10.15911173]
[1763560479793,1.76,137.17,137.14,0.66]
[1763560480912,1.76,137.17,137.09,18.22096]
[1763560480913,1.76,137.17,137.09,0.1]
[1763560481105,1.76,137.17,137.14,0.66]
[1763560481713,1.76,137.17,137.13,9.49911173]
[1763560481936,1.76,137.17,137.09,0.1]
[1763560481937,10.07911173,137.16,137.09,0.76]
[1763560482217,10.07911173,137.16,137.1,9.49911173]
[1763560482715,9.49911173,137.16,137.1,10.15911173]
[1763560483317,9.49911173,137.16,137.11,0.66]
[1763560483500,2.34,137.17,137.11,0.66]
[1763560483697,1.76,137.17,137.12,9.49911173]
[1763560484094,1.76,137.17,137.13,0.66]
[1763560484295,11.25911173,137.18,137.13,0.66]
[1763560484494,11.25911173,137.18,137.13,10.15911173]
[1763560484691,9.49911173,137.17,137.12,9.49911173]
[1763560484887,9.49911173,137.16,137.11,10.15911173]
[1763560485314,9.49911173,137.16,137.12,0.66]
[1763560485793,9.49911173,137.14,137.09,10.25911173]
[1763560485996,10.07911173,137.14,137.09,10.25911173]
[1763560486612,9.49911173,137.14,137.1,0.66]
[1763560486795,9.49911173,137.16,137.11,9.49911173]
[1763560486995,1.76,137.18,137.14,9.49911173]
[1763560487223,1.76,137.18,137.14,10.15911173]
[1763560487402,1.76,137.18,137.15,0.66]
[1763560487604,1.99999999,137.31,137.17,9.49911173]
[1763560487805,9.49911173,137.24,137.18,9.49911173]
[1763560488033,11.25911173,137.23,137.18,9.49911173]
[1763560488195,11.83911173,137.23,137.18,9.49911173]
[1763560488400,11.83911173,137.23,137.18,10.15911173]
[1763560488895,1.76,137.23,137.19,0.66]
[1763560489096,1.76,137.23,137.2,9.49911173]
[1763560489322,1.76,137.23,137.21,9.49911173]
[1763560489598,1.76,137.25,137.21,9.49911173]
[1763560489800,11.25911173,137.25,137.2,9.49911173]
[1763560490106,29.38007173,137.25,137.2,9.49911173]
[1763560490317,29.38007173,137.25,137.2,10.16911173]
[1763560491718,29.96007173,137.25,137.2,0.67]
[1763560492018,9.49911173,137.21,137.13,18.12096]
[1763560492223,19.88096,137.25,137.15,9.49911173]
[1763560492224,1.76,137.2,137.15,9.49911173]
[1763560492394,1.76,137.2,137.16,9.49911173]
[1763560492605,1.76,137.2,137.17,0.67]
[1763560492931,1.76,137.2,137.18,9.49911173]
[1763560493236,11.25911173,137.23,137.19,0.67]
[1763560493439,9.49911173,137.22,137.16,10.16911173]
[1763560493645,9.49911173,137.21,137.16,10.16911173]
[1763560494016,9.49911173,137.19,137.14,0.67]
[1763560495128,1.76,137.2,137.16,9.49911173]
[1763560495341,1.76,137.2,137.17,10.16911173]
[1763560495936,11.25911173,137.23,137.18,0.67]
[1763560496828,9.49911173,137.22,137.18,0.67]
[1763560499228,9.49911173,137.21,137.15,11.25911173]
[1763560499451,9.49911173,137.21,137.16,0.67]
[1763560500454,27.90978769,137.25,137.12,18.12096]
[1763560500455,1.76,137.2,137.12,18.12096]
[1763560500662,27.62007173,137.22,137.16,10.16911173]
[1763560500962,9.49911173,137.22,137.17,0.67]
[1763560501324,11.25911173,137.23,137.17,10.16911173]
[1763560501523,1.76,137.23,137.18,9.49911173]
[1763560501752,1.76,137.23,137.18,10.16911173]
[1763560501932,11.25911173,137.23,137.19,0.67]
[1763560502332,1.76,137.23,137.19,0.67]
[1763560502541,11.25911173,137.23,137.19,0.67]
[1763560503050,1.76,137.23,137.19,0.67]
[1763560503642,1.76,137.26,137.21,9.49911173]
[1763560503944,1.76,137.26,137.22,9.49911173]
[1763560504117,17.07125081,137.32,137.19,0.67]
[1763560504118,9.49911173,137.29,137.23,9.49911173]
[1763560504318,11.25911173,137.29,137.23,9.49911173]
[1763560504517,11.25911173,137.29,137.24,0.67]
[1763560504760,9.49911173,137.28,137.24,0.67]
[1763560505129,1.76,137.29,137.24,0.67]
[1763560505460,11.25911173,137.29,137.24,0.67]
[1763560505932,1.76,137.29,137.24,0.67]
[1763560506130,1.76,137.29,137.24,10.16911173]
[1763560506327,9.49911173,137.27,137.24,0.67]
[1763560506568,9.49911173,137.25,137.22,0.67]
[1763560506751,9.49911173,137.24,137.22,0.67]
[1763560507164,9.49911173,137.25,137.22,0.67]
[1763560508042,9.49911173,137.25,137.13,18.23009031]
[1763560508043,9.49911173,137.23,137.18,0.67]
[1763560508246,9.49911173,137.22,137.18,0.67]
[1763560508661,11.25911173,137.23,137.18,0.67]
[1763560509351,9.49911173,137.22,137.18,0.67]
[1763560511476,11.25911173,137.23,137.18,0.67]
[1763560511843,9.49911173,137.22,137.18,0.67]
[1763560512653,1.76,137.23,137.18,0.67]
[1763560512846,1.76,137.23,137.19,9.49911173]
[1763560513047,1.76,137.23,137.2,0.67]
[1763560513748,11.25911173,137.23,137.2,0.67]
[1763560514137,10.07911173,137.22,137.17,10.16911173]
[1763560514477,9.49911173,137.22,137.17,0.67]
[1763560514640,9.49911173,137.21,137.18,0.67]
[1763560514842,9.49911173,137.21,137.16,0.67]
[1763560515038,9.49911173,137.2,137.16,0.67]
[1763560515245,1.76,137.2,137.16,0.67]
[1763560515453,9.49911173,137.19,137.16,0.67]
[1763560515969,0.58,137.19,137.13,0.67]
[1763560516142,1.76,137.2,137.09,0.77]
[1763560516143,9.49911173,137.14,137.09,0.77]
[1763560516345,9.49911173,137.12,137.09,0.77]
[1763560516541,1.76,137.14,137.09,0.77]
[1763560516774,9.49911173,137.12,137.09,0.77]
[1763560517340,9.49911173,137.12,137.09,0.1]
[1763560517760,9.49911173,137.11,137.09,0.1]
[1763560518081,9.49911173,137.12,137.09,0.1]
[1763560518251,9.49911173,137.11,137.09,0.1]
[1763560518450,9.49911173,137.11,137.09,0.77]
[1763560518980,9.49911173,137.1,137.09,0.1]
[1763560521840,1.76,137.11,137.09,0.1]
[1763560522056,11.25911173,137.11,137.09,0.1]
[1763560522247,1.76,137.11,137.09,0.1]
[1763560522448,9.49911173,137.1,137.09,0.1]
[1763560522648,11.25911173,137.11,137.09,0.1]
[1763560524177,1.76,137.11,137.09,0.8]
[1763560524774,11.25911173,137.11,137.09,0.1]
[1763560526762,11.25911173,137.11,137.09,0.76]
[1763560526763,1.76,137.11,137.09,0.76]
[1763560528058,11.25911173,137.13,137.09,0.76]
[1763560528259,11.25911173,137.13,137.09,10.25911173]
[1763560528260,1.76,137.13,137.09,10.25911173]
[1763560528468,25.51142043,137.2,137.09,10.25911173]
[1763560528469,9.49911173,137.16,137.1,9.49911173]
[1763560528644,18.21971199,137.22,137.09,0.76]
[1763560528645,1.99999999,137.27,137.12,9.49911173]
[1763560528858,9.49911173,137.2,137.15,9.49911173]
[1763560529180,1.76,137.2,137.16,0.66]
[1763560529379,1.76,137.2,137.16,10.15911173]
[1763560529552,17.54,137.29,137.17,9.49911173]
[1763560529753,9.49911173,137.21,137.15,9.49911173]
[1763560529952,9.49911173,137.2,137.16,0.66]
[1763560530480,9.49911173,137.21,137.16,10.15911173]
[1763560530775,11.25911173,137.22,137.16,10.15911173]
[1763560530981,1.76,137.22,137.17,10.15911173]
[1763560531358,1.76,137.22,137.18,0.66]
[1763560531871,1.76,137.22,137.18,10.15911173]
[1763560532194,9.49911173,137.24,137.19,9.49911173]
[1763560532369,9.49911173,137.24,137.19,10.15911173]
[1763560532684,9.49911173,137.24,137.2,0.66]
[1763560533956,9.49911173,137.21,137.16,0.66]
[1763560534263,9.49911173,137.21,137.16,10.15911173]
[1763560534494,11.25911173,137.22,137.16,10.15911173]
[1763560534660,11.25911173,137.22,137.17,0.66]
[1763560534981,1.76,137.22,137.17,10.15911173]
[1763560535359,1.76,137.22,137.18,0.66]
[1763560536361,1.76,137.22,137.18,10.15911173]
[1763560536585,1.76,137.22,137.19,9.49911173]
[1763560536762,1.76,137.22,137.19,10.15911173]
[1763560536961,9.49911173,137.22,137.19,0.66]
[1763560537173,1.76,137.25,137.2,0.66]
[1763560537356,9.49911173,137.24,137.2,0.66]
[1763560537757,10.07911173,137.23,137.17,9.49911173]
[1763560537957,9.49911173,137.23,137.17,9.49911173]
[1763560538258,9.49911173,137.23,137.18,0.66]
[1763560538879,9.49911173,137.22,137.18,0.66]
[1763560539484,9.49911173,137.23,137.18,0.66]
[1763560539686,9.49911173,137.22,137.18,0.66]
[1763560540859,5.68268911,137.22,137.18,0.66]
[1763560542158,5.68268911,137.21,137.19,0.66]
[1763560542378,5.68268911,137.21,137.16,5.68268911]
[1763560542564,0.58,137.21,137.17,0.66]
[1763560542771,1.76,137.22,137.17,0.66]
[1763560543080,5.68268911,137.2,137.17,0.66]
[1763560544179,5.68268911,137.21,137.17,0.66]
[1763560544765,7.44268911,137.22,137.17,6.34268911]
[1763560545174,8.02268911,137.22,137.18,0.66]
[1763560546961,1.76,137.22,137.18,0.66]
[1763560547281,7.44268911,137.22,137.18,0.66]
[1763560547481,1.76,137.22,137.18,0.66]
[1763560547660,7.44268911,137.22,137.18,0.66]
[1763560548362,8.02268911,137.22,137.18,0.66]
[1763560548557,18.12096,137.26,137.2,5.68268911]
[1763560548859,5.68268911,137.26,137.21,0.66]
[1763560549268,6.26268911,137.25,137.21,0.66]
[1763560549465,5.68268911,137.25,137.21,0.66]
[1763560550260,6.26268911,137.25,137.21,0.66]
[1763560550562,5.68268911,137.22,137.14,19.88096]
[1763560550780,1.76,137.23,137.16,6.40268911]
[1763560550988,5.68268911,137.21,137.16,6.40268911]
[1763560551292,5.68268911,137.21,137.17,0.72]
[1763560551499,1.76,137.23,137.17,0.72]
[1763560551786,6.26268911,137.22,137.17,0.72]
[1763560552001,1.76,137.23,137.19,5.68268911]
[1763560552359,1.76,137.23,137.2,0.72]
[1763560552588,5.68268911,137.26,137.2,0.72]
[1763560552765,1.76,137.26,137.21,5.68268911]
[1763560553184,7.44268911,137.26,137.22,0.72]
[1763560555179,1.76,137.26,137.22,0.72]
[1763560555378,1.76,137.26,137.22,6.40268911]
[1763560555581,1.76,137.26,137.23,0.72]
[1763560555894,7.44268911,137.3,137.24,5.68268911]
[1763560556069,1.76,137.3,137.25,6.40268911]
[1763560556270,1.76,137.3,137.26,0.72]
[1763560556587,1.76,137.3,137.26,6.40268911]
[1763560556895,0.58,137.33,137.26,6.40268911]
[1763560557094,2.34,137.33,137.27,6.40268911]
[1763560557293,0.58,137.35,137.28,5.68268911]
[1763560557590,6.26268911,137.35,137.29,6.40268911]
[1763560557780,5.68268911,137.35,137.29,6.40268911]
[1763560557968,5.68268911,137.34,137.29,6.40268911]
[1763560558169,5.68268911,137.34,137.29,0.72]
[1763560558367,5.68268911,137.34,137.3,0.72]
[1763560558592,5.68268911,137.32,137.27,6.40268911]
[1763560558895,5.68268911,137.32,137.27,0.72]
[1763560559086,5.68268911,137.32,137.28,0.72]
[1763560559498,5.88268911,137.36,137.3,5.68268911]
[1763560559876,5.88268911,137.36,137.3,6.40268911]
[1763560559877,0.78,137.36,137.3,6.40268911]
[1763560560297,0.2,137.36,137.31,6.40268911]
[1763560560493,0.2,137.36,137.32,5.68268911]
[1763560560793,0.2,137.36,137.33,5.68268911]
[1763560561009,0.2,137.36,137.34,0.72]
[1763560561714,5.88268911,137.36,137.31,24.52364911]
[1763560562038,5.68268911,137.35,137.31,18.12096]
[1763560562173,1.76,137.34,137.27,0.72]
[1763560562508,1.76,137.34,137.3,5.68268911]
[1763560562699,1.76,137.34,137.31,0.72]
[1763560562897,7.44268911,137.34,137.31,0.72]
[1763560563596,5.68268911,137.33,137.29,0.72]
[1763560563902,0.2,137.36,137.29,0.72]
[1763560564080,5.68268911,137.34,137.29,0.72]
[1763560564272,5.68268911,137.33,137.29,0.72]
[1763560564873,5.68268911,137.32,137.29,18.84096]
[1763560565090,5.68268911,137.32,137.29,18.12096]
[1763560565296,0.2,137.36,137.29,18.12096]
[1763560565297,5.68268911,137.31,137.29,18.12096]
[1763560565481,5.68268911,137.31,137.28,18.12096]
[1763560565676,5.68268911,137.31,137.26,0.72]
[1763560565677,5.68268911,137.29,137.26,0.72]
[1763560565897,5.68268911,137.28,137.26,0.72]
[1763560566876,5.68268911,137.3,137.26,0.72]
[1763560567201,0.58,137.33,137.26,0.72]
[1763560567202,5.68268911,137.29,137.26,0.72]
[1763560567612,5.68268911,137.28,137.26,0.72]
[1763560567899,0.58,137.31,137.26,0.72]
[1763560567900,5.68268911,137.29,137.26,0.72]
[1763560568626,5.68268911,137.3,137.26,18.84096]
[1763560568824,5.68268911,137.29,137.26,18.84096]
[1763560569025,5.68268911,137.29,137.2,49.92605059]
[1763560569026,5.68268911,137.27,137.2,9.78882769]
[1763560569328,5.68268911,137.24,137.21,0.72]
[1763560569503,5.68268911,137.24,137.21,18.84096]
[1763560569704,5.68268911,137.25,137.22,18.12096]
[1763560569922,5.68268911,137.25,137.22,18.84096]
[1763560570122,5.68268911,137.25,137.23,0.72]
[1763560570424,5.68268911,137.29,137.23,0.72]
[1763560570624,5.68268911,137.3,137.23,6.40268911]
[1763560570922,5.68268911,137.3,137.25,18.12096]
[1763560571425,5.68268911,137.3,137.26,0.72]
[1763560572218,5.68268911,137.29,137.26,0.72]
[1763560573204,5.68268911,137.28,137.26,0.72]
[1763560573816,5.68268911,137.29,137.25,18.12096]
[1763560574131,5.68268911,137.28,137.24,0.72]
[1763560574498,0.58,137.31,137.24,18.84096]
[1763560574704,5.68268911,137.28,137.24,18.84096]
[1763560575105,5.68268911,137.28,137.25,0.72]
[1763560575628,0.58,137.31,137.25,0.72]
[1763560575827,2.34,137.33,137.26,18.12096]
[1763560576024,5.68268911,137.32,137.27,0.72]
[1763560576211,7.44268911,137.33,137.27,6.40268911]
[1763560576408,5.68268911,137.34,137.27,6.40268911]
[1763560576609,5.68268911,137.34,137.28,0.72]
[1763560576927,5.68268911,137.34,137.28,24.52364911]
[1763560577229,5.68268911,137.35,137.28,24.52364911]
[1763560577434,5.68268911,137.34,137.29,0.72]
[1763560578002,2.54,137.36,137.29,0.72]